[Event "Titled Tuesday Blitz May 10 Early 2022"]
[White "Aslanov, Umid"]
[Black "Janaszak, Dawid"]
[WhiteFideId "13412620"]
[BlackFideId "1119206"]
[WhiteElo "1796"]
[BlackElo "2199"]
[Result "0-1"]
[Round "08"]
[TimeControl "180+1"]
[Date "2022.05.11"]
[WhiteClock "0:00:32"]
[BlackClock "0:00:18"]

1. e4 {[%clk 0:03:00]}  c5 {[%clk 0:02:58]} 2. b4 {[%clk 0:02:59]}  e5 {[%clk 0:02:54]} 3. bxc5 {[%clk 0:02:56]}  Bxc5 {[%clk 0:02:53]} 4. c3 {[%clk 0:02:57]}  Nc6 {[%clk 0:02:52]} 5. Nf3 {[%clk 0:02:55]}  Nf6 {[%clk 0:02:52]} 6. Bd3 {[%clk 0:02:44]}  O-O {[%clk 0:02:50]} 7. Bc2 {[%clk 0:02:42]}  d5 {[%clk 0:02:49]} 8. exd5 {[%clk 0:02:42]}  e4 {[%clk 0:02:50]} 9. d4 {[%clk 0:02:32]}  exd3 {[%clk 0:02:35]} 10. Qxd3 {[%clk 0:02:30]}  Re8+ {[%clk 0:02:31]} 11. Kf1 {[%clk 0:02:18]}  Qxd5 {[%clk 0:02:27]} 12. Qxd5 {[%clk 0:02:16]}  Nxd5 {[%clk 0:02:28]} 13. Nbd2 {[%clk 0:02:07]}  Nxc3 {[%clk 0:02:23]} 14. Bb2 {[%clk 0:02:05]}  Nd5 {[%clk 0:02:15]} 15. Ng5 {[%clk 0:01:43]}  h6 {[%clk 0:02:03]} 16. Nge4 {[%clk 0:01:37]}  Bd4 {[%clk 0:02:00]} 17. Bxd4 {[%clk 0:01:32]}  Nxd4 {[%clk 0:02:01]} 18. Bd3 {[%clk 0:01:32]}  Bf5 {[%clk 0:01:54]} 19. Nc5 {[%clk 0:01:24]}  Bxd3+ {[%clk 0:01:49]} 20. Nxd3 {[%clk 0:01:25]}  Rac8 {[%clk 0:01:43]} 21. h4 {[%clk 0:01:19]}  Rc2 {[%clk 0:01:40]} 22. Nb3 {[%clk 0:01:17]}  Nf5 {[%clk 0:01:24]} 23. Ne1 {[%clk 0:01:06]}  Rb2 {[%clk 0:01:17]} 24. Nd3 {[%clk 0:01:03]}  Rc2 {[%clk 0:01:16]} 25. Ne1 {[%clk 0:01:01]}  Rce2 {[%clk 0:01:16]} 26. g4 {[%clk 0:00:57]}  Nd6 {[%clk 0:00:50]} 27. Rh3 {[%clk 0:00:53]}  Nf4 {[%clk 0:00:46]} 28. Rf3 {[%clk 0:00:51]}  Ng6 {[%clk 0:00:46]} 29. Rd1 {[%clk 0:00:47]}  Nc4 {[%clk 0:00:42]} 30. h5 {[%clk 0:00:46]}  Nf8 {[%clk 0:00:40]} 31. Rf4 {[%clk 0:00:46]}  b5 {[%clk 0:00:38]} 32. Nd4 {[%clk 0:00:43]}  Nd2+ {[%clk 0:00:35]} 33. Kg2 {[%clk 0:00:42]}  Rxe1 {[%clk 0:00:33]} 34. Rxd2 {[%clk 0:00:42]}  a6 {[%clk 0:00:32]} 35. Nf5 {[%clk 0:00:37]}  R1e6 {[%clk 0:00:28]} 36. Rd7 {[%clk 0:00:36]}  Nxd7 {[%clk 0:00:26]} 37. Rd4 {[%clk 0:00:30]}  Nf8 {[%clk 0:00:26]} 38. f3 {[%clk 0:00:28]}  Re2+ {[%clk 0:00:24]} 39. Kg3 {[%clk 0:00:28]}  Rxa2 {[%clk 0:00:24]} 40. Nd6 {[%clk 0:00:26]}  Rd8 {[%clk 0:00:23]} 41. Nxb5 {[%clk 0:00:26]}  Rxd4 {[%clk 0:00:23]} 42. Nxd4 {[%clk 0:00:27]}  a5 {[%clk 0:00:24]} 43. Nc2 {[%clk 0:00:26]}  a4 {[%clk 0:00:23]} 44. g5 {[%clk 0:00:27]}  hxg5 {[%clk 0:00:22]} 45. Na3 {[%clk 0:00:27]}  Rxa3 {[%clk 0:00:22]} 46. Kg4 {[%clk 0:00:28]}  Rxf3 {[%clk 0:00:22]} 47. Kxg5 {[%clk 0:00:28]}  a3 {[%clk 0:00:22]} 48. h6 {[%clk 0:00:28]}  a2 {[%clk 0:00:21]} 49. h7+ {[%clk 0:00:29]}  Nxh7+ {[%clk 0:00:20]} 50. Kh5 {[%clk 0:00:30]}  a1=Q {[%clk 0:00:19]} 51. Kh4 {[%clk 0:00:31]}  Qd4+ {[%clk 0:00:18]} 52. Kh5 {[%clk 0:00:32]}  g6+ {[%clk 0:00:18]} 53. Kh6 {[%clk 0:00:32]}  Qg7# {[%clk 0:00:18]} 0-1


[Site "https://www.chess.com"]

[Event "Titled Tuesday Blitz May 10 Early 2022"]
[White "Azarov, Sergei"]
[Black "De Silva, L M S T"]
[WhiteFideId "13501470"]
[BlackFideId "9953698"]
[WhiteElo "2494"]
[BlackElo "1631"]
[Result "0-1"]
[Round "08"]
[TimeControl "180+1"]
[Date "2022.05.10"]
[WhiteClock "0:00:32"]
[BlackClock "0:01:28"]

1. e4 {[%clk 0:03:00]}  e5 {[%clk 0:03:00]} 2. Nf3 {[%clk 0:03:00]}  Nc6 {[%clk 0:03:00]} 3. Bb5 {[%clk 0:03:00]}  a6 {[%clk 0:03:00]} 4. Ba4 {[%clk 0:03:00]}  Nf6 {[%clk 0:03:01]} 5. O-O {[%clk 0:03:00]}  b5 {[%clk 0:03:01]} 6. Bb3 {[%clk 0:03:00]}  Bb7 {[%clk 0:03:02]} 7. d3 {[%clk 0:03:00]}  Be7 {[%clk 0:03:02]} 8. Nc3 {[%clk 0:02:59]}  O-O {[%clk 0:03:02]} 9. a4 {[%clk 0:02:54]}  Nd4 {[%clk 0:02:58]} 10. axb5 {[%clk 0:02:18]}  Nxb3 {[%clk 0:02:47]} 11. cxb3 {[%clk 0:02:18]}  axb5 {[%clk 0:02:47]} 12. Rxa8 {[%clk 0:02:19]}  Bxa8 {[%clk 0:02:48]} 13. Bg5 {[%clk 0:02:04]}  b4 {[%clk 0:02:46]} 14. Bxf6 {[%clk 0:01:59]}  Bxf6 {[%clk 0:02:44]} 15. Na4 {[%clk 0:01:55]}  d5 {[%clk 0:02:43]} 16. Nc5 {[%clk 0:01:50]}  Qd6 {[%clk 0:02:39]} 17. Qc2 {[%clk 0:01:48]}  Rd8 {[%clk 0:02:23]} 18. h3 {[%clk 0:01:42]}  dxe4 {[%clk 0:02:13]} 19. Nxe4 {[%clk 0:01:36]}  Qxd3 {[%clk 0:02:12]} 20. Nxf6+ {[%clk 0:01:30]}  gxf6 {[%clk 0:02:12]} 21. Qxc7 {[%clk 0:01:28]}  Bxf3 {[%clk 0:02:07]} 22. gxf3 {[%clk 0:01:28]}  Kh8 {[%clk 0:01:40]} 23. Kh2 {[%clk 0:00:49]}  Rg8 {[%clk 0:01:38]} 24. Qc6 {[%clk 0:00:32]}  Qg6 {[%clk 0:01:28]} 0-1


[Site "https://www.chess.com"]

[Event "Titled Tuesday Blitz May 10 Early 2022"]
[White "Bach, Ngoc Thuy Duong"]
[Black "Al-Tarboush, Ward"]
[WhiteFideId "12408956"]
[BlackFideId "7601450"]
[WhiteElo "1862"]
[BlackElo "2294"]
[Result "0-1"]
[Round "08"]
[TimeControl "180+1"]
[Date "2022.05.11"]
[WhiteClock "0:00:01"]
[BlackClock "0:00:08"]

1. d4 {[%clk 0:03:00]}  b6 {[%clk 0:02:59]} 2. c4 {[%clk 0:03:00]}  Bb7 {[%clk 0:02:59]} 3. Nc3 {[%clk 0:03:00]}  Nf6 {[%clk 0:02:57]} 4. Qc2 {[%clk 0:03:00]}  d5 {[%clk 0:02:57]} 5. cxd5 {[%clk 0:02:57]}  Nxd5 {[%clk 0:02:58]} 6. e4 {[%clk 0:02:54]}  Nxc3 {[%clk 0:02:58]} 7. bxc3 {[%clk 0:02:53]}  e6 {[%clk 0:02:58]} 8. Nf3 {[%clk 0:02:52]}  Be7 {[%clk 0:02:58]} 9. Bd3 {[%clk 0:02:51]}  c5 {[%clk 0:02:58]} 10. O-O {[%clk 0:02:47]}  O-O {[%clk 0:02:57]} 11. Bb2 {[%clk 0:02:30]}  Qc7 {[%clk 0:02:55]} 12. Qe2 {[%clk 0:02:25]}  Nc6 {[%clk 0:02:50]} 13. Rac1 {[%clk 0:02:21]}  Rac8 {[%clk 0:02:47]} 14. d5 {[%clk 0:02:15]}  Na5 {[%clk 0:02:47]} 15. c4 {[%clk 0:02:13]}  f6 {[%clk 0:02:39]} 16. Rfd1 {[%clk 0:01:08]}  e5 {[%clk 0:02:38]} 17. Nh4 {[%clk 0:01:01]}  Rcd8 {[%clk 0:02:37]} 18. Nf5 {[%clk 0:00:59]}  Bc8 {[%clk 0:02:36]} 19. Bb1 {[%clk 0:00:52]}  Nb7 {[%clk 0:02:34]} 20. Rc3 {[%clk 0:00:45]}  Nd6 {[%clk 0:02:32]} 21. Rh3 {[%clk 0:00:43]}  Nxf5 {[%clk 0:02:15]} 22. exf5 {[%clk 0:00:44]}  Bd6 {[%clk 0:02:15]} 23. Qh5 {[%clk 0:00:38]}  h6 {[%clk 0:02:15]} 24. Be4 {[%clk 0:00:35]}  Qf7 {[%clk 0:02:14]} 25. Qg4 {[%clk 0:00:35]}  Kh8 {[%clk 0:02:01]} 26. Bc1 {[%clk 0:00:35]}  Rd7 {[%clk 0:01:52]} 27. Rdd3 {[%clk 0:00:25]}  Kh7 {[%clk 0:01:25]} 28. Rdg3 {[%clk 0:00:22]}  Rh8 {[%clk 0:01:24]} 29. Bxh6 {[%clk 0:00:15]}  Kg8 {[%clk 0:01:16]} 30. Bc1 {[%clk 0:00:11]}  Ba6 {[%clk 0:00:50]} 31. Rxh8+ {[%clk 0:00:10]}  Kxh8 {[%clk 0:00:51]} 32. Rh3+ {[%clk 0:00:11]}  Kg8 {[%clk 0:00:51]} 33. Qh4 {[%clk 0:00:11]}  Kf8 {[%clk 0:00:52]} 34. Bd3 {[%clk 0:00:09]}  Ke7 {[%clk 0:00:49]} 35. Rg3 {[%clk 0:00:07]}  Kd8 {[%clk 0:00:47]} 36. Rg6 {[%clk 0:00:07]}  Kc7 {[%clk 0:00:47]} 37. Be3 {[%clk 0:00:06]}  Bb7 {[%clk 0:00:45]} 38. h3 {[%clk 0:00:06]}  b5 {[%clk 0:00:45]} 39. Qe4 {[%clk 0:00:03]}  b4 {[%clk 0:00:44]} 40. Qf3 {[%clk 0:00:02]}  a5 {[%clk 0:00:44]} 41. Be4 {[%clk 0:00:03]}  a4 {[%clk 0:00:44]} 42. Qe2 {[%clk 0:00:03]}  Qe8 {[%clk 0:00:41]} 43. Qc2 {[%clk 0:00:03]}  Qa8 {[%clk 0:00:40]} 44. Bf3 {[%clk 0:00:02]}  Qa5 {[%clk 0:00:40]} 45. Bd1 {[%clk 0:00:02]}  b3 {[%clk 0:00:39]} 46. axb3 {[%clk 0:00:03]}  axb3 {[%clk 0:00:38]} 47. Qxb3 {[%clk 0:00:03]}  Qe1+ {[%clk 0:00:33]} 48. Kh2 {[%clk 0:00:03]}  e4+ {[%clk 0:00:32]} 49. g3 {[%clk 0:00:04]}  Qb4 {[%clk 0:00:21]} 50. Qxb4 {[%clk 0:00:02]}  cxb4 {[%clk 0:00:21]} 51. Bb3 {[%clk 0:00:02]}  Be5 {[%clk 0:00:16]} 52. Rg4 {[%clk 0:00:01]}  Rd8 {[%clk 0:00:17]} 53. Rxe4 {[%clk 0:00:01]}  Ra8 {[%clk 0:00:17]} 54. f4 {[%clk 0:00:01]}  Bd6 {[%clk 0:00:08]} 0-1


[Site "https://www.chess.com"]

[Event "Titled Tuesday Blitz May 10 Early 2022"]
[White "Bacrot, Etienne"]
[Black "Oparin, Grigoriy"]
[WhiteFideId "605506"]
[BlackFideId "24125890"]
[WhiteElo "2673"]
[BlackElo "2665"]
[Result "0-1"]
[Round "08"]
[TimeControl "180+1"]
[Date "2022.05.10"]
[WhiteClock "0:00:01"]
[BlackClock "0:00:08"]

1. e4 {[%clk 0:03:00]}  e5 {[%clk 0:03:00]} 2. Nf3 {[%clk 0:03:01]}  Nc6 {[%clk 0:03:00]} 3. Bb5 {[%clk 0:03:00]}  Nf6 {[%clk 0:03:01]} 4. O-O {[%clk 0:03:00]}  Nxe4 {[%clk 0:03:01]} 5. d4 {[%clk 0:03:00]}  Nd6 {[%clk 0:02:59]} 6. Bxc6 {[%clk 0:03:00]}  dxc6 {[%clk 0:02:59]} 7. dxe5 {[%clk 0:03:01]}  Nf5 {[%clk 0:03:00]} 8. Qxd8+ {[%clk 0:03:01]}  Kxd8 {[%clk 0:03:01]} 9. h3 {[%clk 0:03:01]}  Ke8 {[%clk 0:02:59]} 10. Nc3 {[%clk 0:02:58]}  h6 {[%clk 0:03:00]} 11. b3 {[%clk 0:02:50]}  Bd7 {[%clk 0:02:37]} 12. Bb2 {[%clk 0:02:49]}  Rd8 {[%clk 0:02:35]} 13. Rad1 {[%clk 0:02:37]}  Be7 {[%clk 0:02:33]} 14. Ne2 {[%clk 0:02:31]}  c5 {[%clk 0:02:25]} 15. e6 {[%clk 0:01:53]}  Bxe6 {[%clk 0:02:20]} 16. g4 {[%clk 0:01:46]}  Rxd1 {[%clk 0:01:34]} 17. Rxd1 {[%clk 0:01:45]}  Nd4 {[%clk 0:01:34]} 18. Nexd4 {[%clk 0:01:43]}  cxd4 {[%clk 0:01:35]} 19. Nxd4 {[%clk 0:01:16]}  Bd7 {[%clk 0:01:35]} 20. Ne2 {[%clk 0:01:03]}  h5 {[%clk 0:01:30]} 21. f3 {[%clk 0:00:57]}  hxg4 {[%clk 0:01:29]} 22. hxg4 {[%clk 0:00:57]}  Bc6 {[%clk 0:01:20]} 23. Kg2 {[%clk 0:00:56]}  Bd6 {[%clk 0:01:19]} 24. Nd4 {[%clk 0:00:41]}  f6 {[%clk 0:00:57]} 25. Nxc6 {[%clk 0:00:38]}  Rh2+ {[%clk 0:00:56]} 26. Kg1 {[%clk 0:00:38]}  Rxc2 {[%clk 0:00:57]} 27. Nxa7 {[%clk 0:00:07]}  Rxb2 {[%clk 0:00:50]} 28. Nb5 {[%clk 0:00:08]}  Kd7 {[%clk 0:00:39]} 29. Nc3 {[%clk 0:00:07]}  Rc2 {[%clk 0:00:34]} 30. Rd3 {[%clk 0:00:06]}  Ke7 {[%clk 0:00:30]} 31. a4 {[%clk 0:00:06]}  c6 {[%clk 0:00:25]} 32. Ne4 {[%clk 0:00:06]}  Bf4 {[%clk 0:00:21]} 33. Kf1 {[%clk 0:00:06]}  g6 {[%clk 0:00:21]} 34. b4 {[%clk 0:00:06]}  b6 {[%clk 0:00:20]} 35. Rc3 {[%clk 0:00:04]}  Rxc3 {[%clk 0:00:19]} 36. Nxc3 {[%clk 0:00:04]}  Bd2 {[%clk 0:00:20]} 37. Na2 {[%clk 0:00:03]}  Kd6 {[%clk 0:00:18]} 38. Ke2 {[%clk 0:00:04]}  Bf4 {[%clk 0:00:18]} 39. Kd3 {[%clk 0:00:04]}  f5 {[%clk 0:00:19]} 40. gxf5 {[%clk 0:00:04]}  gxf5 {[%clk 0:00:19]} 41. Nc3 {[%clk 0:00:04]}  Bg3 {[%clk 0:00:19]} 42. Nb1 {[%clk 0:00:04]}  Be1 {[%clk 0:00:20]} 43. Nd2 {[%clk 0:00:04]}  b5 {[%clk 0:00:17]} 44. axb5 {[%clk 0:00:03]}  cxb5 {[%clk 0:00:18]} 45. f4 {[%clk 0:00:02]}  Kd5 {[%clk 0:00:16]} 46. Nf1 {[%clk 0:00:03]}  Bxb4 {[%clk 0:00:16]} 47. Ne3+ {[%clk 0:00:03]}  Ke6 {[%clk 0:00:17]} 48. Kd4 {[%clk 0:00:03]}  Bd2 {[%clk 0:00:13]} 49. Nd5 {[%clk 0:00:03]}  b4 {[%clk 0:00:12]} 50. Kc4 {[%clk 0:00:03]}  Kd6 {[%clk 0:00:11]} 51. Nb6 {[%clk 0:00:01]}  Bc3 {[%clk 0:00:08]} 52. Kb3 {[%clk 0:00:01]}  Be1 {[%clk 0:00:08]} 53. Nc4+ {[%clk 0:00:01]}  Kd5 {[%clk 0:00:08]} 0-1


[Site "https://www.chess.com"]

[Event "Titled Tuesday Blitz May 10 Early 2022"]
[White "Barria Zuniga, Daniel"]
[Black "Baches Garcia, Guillermo"]
[WhiteFideId "3400816"]
[BlackFideId "2209764"]
[WhiteElo "2414"]
[BlackElo "2526"]
[Result "0-1"]
[Round "08"]
[TimeControl "180+1"]
[Date "2022.05.11"]
[WhiteClock "0:00:08"]
[BlackClock "0:00:17"]

1. c4 {[%clk 0:03:00]}  Nf6 {[%clk 0:03:00]} 2. Nc3 {[%clk 0:02:59]}  e5 {[%clk 0:03:00]} 3. g3 {[%clk 0:02:59]}  d5 {[%clk 0:02:59]} 4. cxd5 {[%clk 0:02:58]}  Nxd5 {[%clk 0:03:00]} 5. Bg2 {[%clk 0:02:59]}  Nb6 {[%clk 0:03:01]} 6. Nf3 {[%clk 0:02:58]}  Nc6 {[%clk 0:03:01]} 7. O-O {[%clk 0:02:58]}  Be7 {[%clk 0:03:01]} 8. d3 {[%clk 0:02:59]}  O-O {[%clk 0:03:02]} 9. a4 {[%clk 0:02:59]}  a5 {[%clk 0:03:00]} 10. Be3 {[%clk 0:02:58]}  Re8 {[%clk 0:03:00]} 11. Rc1 {[%clk 0:02:58]}  Bf8 {[%clk 0:03:00]} 12. Nd2 {[%clk 0:02:56]}  Nd4 {[%clk 0:02:59]} 13. Nce4 {[%clk 0:01:51]}  Bd7 {[%clk 0:02:41]} 14. b3 {[%clk 0:01:43]}  Bc6 {[%clk 0:02:41]} 15. Nc4 {[%clk 0:01:31]}  Nd5 {[%clk 0:02:22]} 16. Bd2 {[%clk 0:01:25]}  Bb4 {[%clk 0:02:13]} 17. e3 {[%clk 0:01:16]}  Nf5 {[%clk 0:02:01]} 18. Qg4 {[%clk 0:00:47]}  Nd6 {[%clk 0:01:48]} 19. Qe2 {[%clk 0:00:39]}  f5 {[%clk 0:01:39]} 20. Nc3 {[%clk 0:00:32]}  Nxc3 {[%clk 0:01:31]} 21. Bxc3 {[%clk 0:00:32]}  Bxg2 {[%clk 0:01:31]} 22. Kxg2 {[%clk 0:00:32]}  Bxc3 {[%clk 0:01:25]} 23. Rxc3 {[%clk 0:00:32]}  Nxc4 {[%clk 0:01:11]} 24. Rxc4 {[%clk 0:00:32]}  Qd5+ {[%clk 0:01:07]} 25. Qf3 {[%clk 0:00:30]}  e4 {[%clk 0:01:00]} 26. dxe4 {[%clk 0:00:29]}  fxe4 {[%clk 0:01:01]} 27. Qg4 {[%clk 0:00:26]}  h5 {[%clk 0:00:46]} 28. Qe2 {[%clk 0:00:20]}  c6 {[%clk 0:00:40]} 29. Rd1 {[%clk 0:00:19]}  Qf5 {[%clk 0:00:40]} 30. Rdd4 {[%clk 0:00:18]}  h4 {[%clk 0:00:37]} 31. h3 {[%clk 0:00:17]}  hxg3 {[%clk 0:00:36]} 32. fxg3 {[%clk 0:00:18]}  Re6 {[%clk 0:00:31]} 33. Qg4 {[%clk 0:00:17]}  Qxg4 {[%clk 0:00:27]} 34. hxg4 {[%clk 0:00:18]}  Rae8 {[%clk 0:00:26]} 35. Rc5 {[%clk 0:00:18]}  Re5 {[%clk 0:00:22]} 36. Rxe5 {[%clk 0:00:15]}  Rxe5 {[%clk 0:00:23]} 37. Rd7 {[%clk 0:00:15]}  b5 {[%clk 0:00:23]} 38. Rd6 {[%clk 0:00:14]}  Rc5 {[%clk 0:00:23]} 39. Rd4 {[%clk 0:00:13]}  Rc2+ {[%clk 0:00:22]} 40. Kh3 {[%clk 0:00:13]}  Rc3 {[%clk 0:00:21]} 41. axb5 {[%clk 0:00:12]}  cxb5 {[%clk 0:00:22]} 42. b4 {[%clk 0:00:13]}  a4 {[%clk 0:00:20]} 43. Rxe4 {[%clk 0:00:13]}  a3 {[%clk 0:00:20]} 44. Re8+ {[%clk 0:00:10]}  Kf7 {[%clk 0:00:20]} 45. Ra8 {[%clk 0:00:10]}  Rxe3 {[%clk 0:00:20]} 46. Ra6 {[%clk 0:00:10]}  g5 {[%clk 0:00:18]} 47. Kg2 {[%clk 0:00:09]}  Rb3 {[%clk 0:00:18]} 48. Kh2 {[%clk 0:00:09]}  Rb2+ {[%clk 0:00:17]} 49. Kg1 {[%clk 0:00:08]}  a2 {[%clk 0:00:17]} 0-1


[Site "https://www.chess.com"]

[Event "Titled Tuesday Blitz May 10 Early 2022"]
[White "Belenkaya, Dina"]
[Black "De Arruda, Leandro Formes"]
[WhiteFideId "24142654"]
[BlackFideId "22722009"]
[WhiteElo "2196"]
[BlackElo "1852"]
[Result "0-1"]
[Round "08"]
[TimeControl "180+1"]
[Date "2022.05.11"]
[WhiteClock "0:00:53"]
[BlackClock "0:00:45"]

1. e4 {[%clk 0:03:00]}  e6 {[%clk 0:02:58]} 2. d4 {[%clk 0:02:58]}  d5 {[%clk 0:02:59]} 3. e5 {[%clk 0:02:58]}  c5 {[%clk 0:02:59]} 4. c3 {[%clk 0:02:58]}  Nc6 {[%clk 0:03:00]} 5. Nf3 {[%clk 0:02:58]}  Qb6 {[%clk 0:03:00]} 6. Nbd2 {[%clk 0:02:57]}  cxd4 {[%clk 0:02:57]} 7. cxd4 {[%clk 0:02:58]}  Nxd4 {[%clk 0:02:57]} 8. Bd3 {[%clk 0:02:50]}  Nc6 {[%clk 0:02:51]} 9. O-O {[%clk 0:02:48]}  Nge7 {[%clk 0:02:52]} 10. Nb3 {[%clk 0:02:45]}  Ng6 {[%clk 0:02:51]} 11. Re1 {[%clk 0:02:42]}  Bb4 {[%clk 0:02:50]} 12. Bd2 {[%clk 0:02:42]}  Bxd2 {[%clk 0:02:49]} 13. Qxd2 {[%clk 0:02:42]}  a5 {[%clk 0:02:47]} 14. Rac1 {[%clk 0:02:41]}  O-O {[%clk 0:02:45]} 15. Nc5 {[%clk 0:02:28]}  Qb4 {[%clk 0:02:42]} 16. Qg5 {[%clk 0:02:15]}  Qxb2 {[%clk 0:02:12]} 17. h4 {[%clk 0:01:44]}  f6 {[%clk 0:01:58]} 18. Qg3 {[%clk 0:01:40]}  Ngxe5 {[%clk 0:01:46]} 19. Nxe5 {[%clk 0:01:40]}  Nxe5 {[%clk 0:01:41]} 20. Bb1 {[%clk 0:01:40]}  b6 {[%clk 0:01:28]} 21. Nb3 {[%clk 0:01:25]}  Ra7 {[%clk 0:01:21]} 22. f4 {[%clk 0:01:22]}  Nc4 {[%clk 0:01:16]} 23. Qd3 {[%clk 0:01:14]}  f5 {[%clk 0:01:16]} 24. Rc2 {[%clk 0:01:13]}  Qf6 {[%clk 0:01:14]} 25. Nd4 {[%clk 0:01:12]}  Qxh4 {[%clk 0:01:12]} 26. Nxe6 {[%clk 0:01:10]}  Qxe1+ {[%clk 0:01:12]} 27. Kh2 {[%clk 0:01:10]}  Qxe6 {[%clk 0:01:11]} 28. Re2 {[%clk 0:01:09]}  Qh6+ {[%clk 0:01:11]} 29. Kg1 {[%clk 0:01:09]}  Qxf4 {[%clk 0:01:10]} 30. Qxd5+ {[%clk 0:01:08]}  Kh8 {[%clk 0:01:08]} 31. Rf2 {[%clk 0:00:58]}  Qc1+ {[%clk 0:00:59]} 32. Rf1 {[%clk 0:00:58]}  Qe3+ {[%clk 0:00:58]} 33. Kh1 {[%clk 0:00:57]}  Raf7 {[%clk 0:00:50]} 34. Qxc4 {[%clk 0:00:53]}  Rf6 {[%clk 0:00:45]} 0-1


[Site "https://www.chess.com"]

[Event "Titled Tuesday Blitz May 10 Early 2022"]
[White "Bintang, Rasyid A. Hidayat"]
[Black "Martic, Ivan"]
[WhiteFideId "7105355"]
[BlackFideId "929301"]
[WhiteElo "2461"]
[BlackElo "2317"]
[Result "0-1"]
[Round "08"]
[TimeControl "180+1"]
[Date "2022.05.11"]
[WhiteClock "0:00:27"]
[BlackClock "0:00:16"]

1. d4 {[%clk 0:02:56]}  d5 {[%clk 0:02:59]} 2. Bf4 {[%clk 0:02:55]}  Nf6 {[%clk 0:02:57]} 3. e3 {[%clk 0:02:56]}  c5 {[%clk 0:02:58]} 4. Nf3 {[%clk 0:02:54]}  Nc6 {[%clk 0:02:56]} 5. Nbd2 {[%clk 0:02:54]}  cxd4 {[%clk 0:02:48]} 6. exd4 {[%clk 0:02:55]}  Bg4 {[%clk 0:02:48]} 7. c3 {[%clk 0:02:52]}  e6 {[%clk 0:02:47]} 8. Qb3 {[%clk 0:02:47]}  Qc8 {[%clk 0:02:41]} 9. Bb5 {[%clk 0:02:46]}  Nd7 {[%clk 0:02:37]} 10. O-O {[%clk 0:02:42]}  a6 {[%clk 0:02:37]} 11. Bd3 {[%clk 0:02:42]}  Be7 {[%clk 0:02:36]} 12. Rfe1 {[%clk 0:02:41]}  O-O {[%clk 0:02:34]} 13. h3 {[%clk 0:02:42]}  Bh5 {[%clk 0:02:33]} 14. Qc2 {[%clk 0:02:40]}  Bg6 {[%clk 0:02:33]} 15. Bxg6 {[%clk 0:02:39]}  hxg6 {[%clk 0:02:34]} 16. a4 {[%clk 0:02:37]}  b5 {[%clk 0:02:32]} 17. Qd3 {[%clk 0:02:33]}  Qb7 {[%clk 0:02:26]} 18. b4 {[%clk 0:02:25]}  bxa4 {[%clk 0:02:16]} 19. Rxa4 {[%clk 0:02:24]}  Nb6 {[%clk 0:02:14]} 20. Ra2 {[%clk 0:02:18]}  a5 {[%clk 0:02:12]} 21. bxa5 {[%clk 0:02:12]}  Rxa5 {[%clk 0:02:08]} 22. Rxa5 {[%clk 0:02:12]}  Nxa5 {[%clk 0:02:09]} 23. Bg5 {[%clk 0:02:08]}  Nac4 {[%clk 0:02:04]} 24. Bxe7 {[%clk 0:02:06]}  Qxe7 {[%clk 0:02:04]} 25. Nxc4 {[%clk 0:02:05]}  Nxc4 {[%clk 0:02:05]} 26. Ne5 {[%clk 0:02:06]}  Nd6 {[%clk 0:01:56]} 27. c4 {[%clk 0:02:03]}  dxc4 {[%clk 0:01:54]} 28. Nxc4 {[%clk 0:02:04]}  Nxc4 {[%clk 0:01:48]} 29. Qxc4 {[%clk 0:02:05]}  Qd7 {[%clk 0:01:46]} 30. Rd1 {[%clk 0:01:58]}  Rd8 {[%clk 0:01:44]} 31. h4 {[%clk 0:01:49]}  Qd5 {[%clk 0:01:32]} 32. Qe2 {[%clk 0:01:26]}  e5 {[%clk 0:01:28]} 33. h5 {[%clk 0:01:24]}  g5 {[%clk 0:01:17]} 34. Qg4 {[%clk 0:01:10]}  exd4 {[%clk 0:01:17]} 35. Rd3 {[%clk 0:01:11]}  Qe5 {[%clk 0:01:10]} 36. g3 {[%clk 0:01:08]}  Kh8 {[%clk 0:01:01]} 37. Qf3 {[%clk 0:00:59]}  Kg8 {[%clk 0:01:00]} 38. Qg4 {[%clk 0:00:59]}  Qf6 {[%clk 0:00:52]} 39. Kg2 {[%clk 0:00:56]}  Rd6 {[%clk 0:00:49]} 40. Rf3 {[%clk 0:00:51]}  Qe7 {[%clk 0:00:46]} 41. Qc8+ {[%clk 0:00:48]}  Rd8 {[%clk 0:00:46]} 42. Qf5 {[%clk 0:00:48]}  f6 {[%clk 0:00:42]} 43. g4 {[%clk 0:00:40]}  Qd7 {[%clk 0:00:39]} 44. Qg6 {[%clk 0:00:38]}  Qxg4+ {[%clk 0:00:37]} 45. Rg3 {[%clk 0:00:38]}  Qd7 {[%clk 0:00:33]} 46. h6 {[%clk 0:00:38]}  d3 {[%clk 0:00:26]} 47. Rh3 {[%clk 0:00:34]}  d2 {[%clk 0:00:22]} 48. hxg7 {[%clk 0:00:32]}  Qxh3+ {[%clk 0:00:20]} 49. Kxh3 {[%clk 0:00:32]}  d1=Q {[%clk 0:00:21]} 50. Qxf6 {[%clk 0:00:31]}  Rd3+ {[%clk 0:00:17]} 51. Kg2 {[%clk 0:00:27]}  Qg4+ {[%clk 0:00:17]} 52. Kf1 {[%clk 0:00:27]}  Rd1# {[%clk 0:00:16]} 0-1


[Site "https://www.chess.com"]

[Event "Titled Tuesday Blitz May 10 Early 2022"]
[White "Broca Jimenez, Fernando"]
[Black "Li, Hui"]
[WhiteFideId "5104742"]
[BlackFideId "15400310"]
[WhiteElo "2062"]
[BlackElo "1954"]
[Result "0-1"]
[Round "08"]
[TimeControl "180+1"]
[Date "2022.05.11"]
[WhiteClock "0:00:05"]
[BlackClock "0:02:15"]

1. e4 {[%clk 0:02:51]}  e5 {[%clk 0:02:59]} 2. Nf3 {[%clk 0:02:44]}  Nf6 {[%clk 0:02:58]} 3. Nxe5 {[%clk 0:02:41]}  d6 {[%clk 0:02:54]} 4. Nf3 {[%clk 0:02:42]}  Nxe4 {[%clk 0:02:53]} 5. d4 {[%clk 0:02:43]}  d5 {[%clk 0:02:53]} 6. Bd3 {[%clk 0:02:43]}  Be7 {[%clk 0:02:54]} 7. O-O {[%clk 0:02:35]}  Nc6 {[%clk 0:02:53]} 8. Re1 {[%clk 0:02:34]}  Bg4 {[%clk 0:02:52]} 9. c3 {[%clk 0:02:20]}  f5 {[%clk 0:02:50]} 10. h3 {[%clk 0:02:20]}  Bh5 {[%clk 0:02:46]} 11. Nbd2 {[%clk 0:02:20]}  O-O {[%clk 0:02:45]} 12. Qc2 {[%clk 0:02:20]}  Kh8 {[%clk 0:02:36]} 13. Ne5 {[%clk 0:01:23]}  Nxe5 {[%clk 0:02:27]} 14. dxe5 {[%clk 0:01:15]}  Bc5 {[%clk 0:02:21]} 15. Nxe4 {[%clk 0:00:31]}  fxe4 {[%clk 0:02:18]} 16. Rf1 {[%clk 0:00:05]}  exd3 {[%clk 0:02:15]} 0-1


[Site "https://www.chess.com"]